[Event "Titled Tuesday Blitz March 22 Late 2022"]
[White "Chigaev, Maksim"]
[Black "Le Goff, Ronan"]
[WhiteFideId "4108116"]
[BlackFideId "612073"]
[WhiteElo "2502"]
[BlackElo "2276"]
[Result "1-0"]
[Round "01"]
[TimeControl "180+1"]
[Date "2022.03.22"]
[WhiteClock "0:00:38"]
[BlackClock "0:01:16"]

1. e4 {[%clk 0:03:00]}  e5 {[%clk 0:02:58]} 2. Nf3 {[%clk 0:02:58]}  Nc6 {[%clk 0:02:58]} 3. Bc4 {[%clk 0:02:56]}  Nf6 {[%clk 0:02:58]} 4. d3 {[%clk 0:02:56]}  Bc5 {[%clk 0:02:58]} 5. c3 {[%clk 0:02:54]}  a6 {[%clk 0:02:57]} 6. Bb3 {[%clk 0:02:54]}  d6 {[%clk 0:02:57]} 7. Nbd2 {[%clk 0:02:53]}  O-O {[%clk 0:02:53]} 8. h3 {[%clk 0:02:53]}  Ba7 {[%clk 0:02:52]} 9. Nf1 {[%clk 0:02:51]}  Be6 {[%clk 0:02:50]} 10. Ng3 {[%clk 0:02:50]}  d5 {[%clk 0:02:50]} 11. Qe2 {[%clk 0:02:49]}  dxe4 {[%clk 0:02:46]} 12. dxe4 {[%clk 0:02:48]}  Bxb3 {[%clk 0:02:46]} 13. axb3 {[%clk 0:02:49]}  Re8 {[%clk 0:02:42]} 14. Nh2 {[%clk 0:02:49]}  Nd7 {[%clk 0:02:36]} 15. b4 {[%clk 0:02:44]}  Nf8 {[%clk 0:02:33]} 16. Nf5 {[%clk 0:02:36]}  Ne7 {[%clk 0:02:28]} 17. Bg5 {[%clk 0:02:05]}  f6 {[%clk 0:02:26]} 18. Rd1 {[%clk 0:01:43]}  Qc8 {[%clk 0:02:21]} 19. Nxe7+ {[%clk 0:01:42]}  Rxe7 {[%clk 0:02:20]} 20. Be3 {[%clk 0:01:43]}  Bxe3 {[%clk 0:02:18]} 21. Qxe3 {[%clk 0:01:44]}  Qe6 {[%clk 0:02:18]} 22. O-O {[%clk 0:01:44]}  Rd7 {[%clk 0:02:16]} 23. Rxd7 {[%clk 0:01:42]}  Qxd7 {[%clk 0:02:16]} 24. Ng4 {[%clk 0:01:40]}  Rd8 {[%clk 0:02:13]} 25. Qf3 {[%clk 0:01:30]}  Ne6 {[%clk 0:02:12]} 26. h4 {[%clk 0:01:27]}  Nf4 {[%clk 0:02:05]} 27. g3 {[%clk 0:01:23]}  Ng6 {[%clk 0:02:01]} 28. h5 {[%clk 0:01:16]}  Ne7 {[%clk 0:01:55]} 29. h6 {[%clk 0:01:16]}  Qd3 {[%clk 0:01:54]} 30. Nxf6+ {[%clk 0:01:02]}  Kf7 {[%clk 0:01:32]} 31. Nxh7+ {[%clk 0:00:58]}  Qxf3 {[%clk 0:01:31]} 32. Ng5+ {[%clk 0:00:58]}  Kg6 {[%clk 0:01:29]} 33. Nxf3 {[%clk 0:00:59]}  gxh6 {[%clk 0:01:26]} 34. Nxe5+ {[%clk 0:00:59]}  Kf6 {[%clk 0:01:26]} 35. Nf3 {[%clk 0:00:59]}  Rd3 {[%clk 0:01:26]} 36. Kg2 {[%clk 0:00:59]}  Ng6 {[%clk 0:01:26]} 37. Rh1 {[%clk 0:00:58]}  Kg7 {[%clk 0:01:26]} 38. Nd4 {[%clk 0:00:52]}  Ne7 {[%clk 0:01:24]} 39. Re1 {[%clk 0:00:47]}  b6 {[%clk 0:01:22]} 40. Ne6+ {[%clk 0:00:41]}  Kf6 {[%clk 0:01:21]} 41. Nxc7 {[%clk 0:00:42]}  Rd2 {[%clk 0:01:21]} 42. Nxa6 {[%clk 0:00:40]}  Rxb2 {[%clk 0:01:21]} 43. Nc7 {[%clk 0:00:41]}  Rc2 {[%clk 0:01:20]} 44. Nd5+ {[%clk 0:00:39]}  Nxd5 {[%clk 0:01:20]} 45. exd5 {[%clk 0:00:40]}  Rxc3 {[%clk 0:01:20]} 46. Re6+ {[%clk 0:00:40]}  Kf5 {[%clk 0:01:21]} 47. Rxh6 {[%clk 0:00:41]}  b5 {[%clk 0:01:18]} 48. Rb6 {[%clk 0:00:41]}  Ke4 {[%clk 0:01:18]} 49. Rxb5 {[%clk 0:00:41]}  Rb3 {[%clk 0:01:18]} 50. d6 {[%clk 0:00:41]}  Rd3 {[%clk 0:01:18]} 51. Rb6 {[%clk 0:00:41]}  Ke5 {[%clk 0:01:18]} 52. b5 {[%clk 0:00:41]}  Ke6 {[%clk 0:01:18]} 53. Rc6 {[%clk 0:00:39]}  Rb3 {[%clk 0:01:18]} 54. b6 {[%clk 0:00:39]}  Kd7 {[%clk 0:01:19]} 55. Rc4 {[%clk 0:00:38]}  Kxd6 {[%clk 0:01:18]} 56. Re4 {[%clk 0:00:38]}  Kd5 {[%clk 0:01:18]} 57. Re1 {[%clk 0:00:36]}  Rxb6 {[%clk 0:01:17]} 58. g4 {[%clk 0:00:37]}  Rb3 {[%clk 0:01:16]} 59. f3 {[%clk 0:00:37]}  Kd6 {[%clk 0:01:15]} 60. Kg3 {[%clk 0:00:37]}  Kd5 {[%clk 0:01:15]} 61. g5 {[%clk 0:00:37]}  Kd6 {[%clk 0:01:16]} 62. Kg4 {[%clk 0:00:38]} 1-0


[Site "https://www.chess.com"]

[Event "Titled Tuesday Blitz March 22 Late 2022"]
[White "Chyngyz, Sultai"]
[Black "Jary, Sergey"]
[WhiteFideId "13803158"]
[BlackFideId "14110350"]
[WhiteElo "1365"]
[BlackElo "2260"]
[Result "0-1"]
[Round "01"]
[TimeControl "180+1"]
[Date "2022.03.22"]
[WhiteClock "0:00:06"]
[BlackClock "0:00:09"]

1. e4 {[%clk 0:02:55]}  c5 {[%clk 0:02:59]} 2. Nf3 {[%clk 0:02:52]}  Nc6 {[%clk 0:02:59]} 3. d4 {[%clk 0:02:53]}  cxd4 {[%clk 0:02:59]} 4. Nxd4 {[%clk 0:02:53]}  g6 {[%clk 0:02:59]} 5. Nxc6 {[%clk 0:02:52]}  bxc6 {[%clk 0:02:59]} 6. Qd4 {[%clk 0:02:52]}  Nf6 {[%clk 0:02:59]} 7. e5 {[%clk 0:02:52]}  Nd5 {[%clk 0:02:59]} 8. e6 {[%clk 0:02:52]}  Nf6 {[%clk 0:02:57]} 9. exf7+ {[%clk 0:02:52]}  Kxf7 {[%clk 0:02:57]} 10. Bc4+ {[%clk 0:02:52]}  d5 {[%clk 0:02:56]} 11. O-O {[%clk 0:02:51]}  Bb7 {[%clk 0:02:26]} 12. Bb3 {[%clk 0:02:49]}  Qd6 {[%clk 0:02:18]} 13. Bf4 {[%clk 0:02:42]}  c5 {[%clk 0:02:12]} 14. Bxd6 {[%clk 0:02:30]}  cxd4 {[%clk 0:02:12]} 15. Be5 {[%clk 0:02:28]}  a5 {[%clk 0:02:09]} 16. a4 {[%clk 0:02:24]}  e6 {[%clk 0:02:09]} 17. Bxd4 {[%clk 0:02:24]}  Bg7 {[%clk 0:02:05]} 18. Nc3 {[%clk 0:02:01]}  Rac8 {[%clk 0:01:59]} 19. Nb5 {[%clk 0:01:59]}  Ne4 {[%clk 0:01:55]} 20. Bxg7 {[%clk 0:01:53]}  Kxg7 {[%clk 0:01:55]} 21. Rad1 {[%clk 0:01:47]}  Bc6 {[%clk 0:01:46]} 22. Nd4 {[%clk 0:01:32]}  Nc5 {[%clk 0:01:40]} 23. Rfe1 {[%clk 0:01:24]}  Bd7 {[%clk 0:01:40]} 24. c3 {[%clk 0:01:07]}  Rb8 {[%clk 0:01:36]} 25. Bc2 {[%clk 0:01:04]}  Rxb2 {[%clk 0:01:34]} 26. Rb1 {[%clk 0:01:03]}  Rxb1 {[%clk 0:01:29]} 27. Rxb1 {[%clk 0:01:04]}  e5 {[%clk 0:01:29]} 28. Nb5 {[%clk 0:01:03]}  Kf6 {[%clk 0:01:24]} 29. Nc7 {[%clk 0:01:01]}  d4 {[%clk 0:01:17]} 30. Rb6+ {[%clk 0:00:56]}  Kg7 {[%clk 0:01:13]} 31. cxd4 {[%clk 0:00:55]}  exd4 {[%clk 0:01:13]} 32. Rd6 {[%clk 0:00:55]}  Rc8 {[%clk 0:01:03]} 33. Nb5 {[%clk 0:00:45]}  Bxb5 {[%clk 0:00:59]} 34. axb5 {[%clk 0:00:46]}  d3 {[%clk 0:00:59]} 35. Bd1 {[%clk 0:00:43]}  a4 {[%clk 0:00:53]} 36. Rc6 {[%clk 0:00:40]}  Re8 {[%clk 0:00:48]} 37. Kf1 {[%clk 0:00:40]}  d2 {[%clk 0:00:41]} 38. Be2 {[%clk 0:00:37]}  Nd3 {[%clk 0:00:41]} 39. Rc7+ {[%clk 0:00:34]}  Kh6 {[%clk 0:00:38]} 40. g3 {[%clk 0:00:34]}  a3 {[%clk 0:00:32]} 41. Ra7 {[%clk 0:00:33]}  Nc1 {[%clk 0:00:26]} 42. Rxa3 {[%clk 0:00:24]}  Nxe2 {[%clk 0:00:25]} 43. Rd3 {[%clk 0:00:22]}  Nc3 {[%clk 0:00:23]} 44. Rxd2 {[%clk 0:00:20]}  Nxb5 {[%clk 0:00:23]} 45. Rb2 {[%clk 0:00:20]}  Nd4 {[%clk 0:00:23]} 46. Rd2 {[%clk 0:00:20]}  Nf3 {[%clk 0:00:22]} 47. Rb2 {[%clk 0:00:19]}  Nxh2+ {[%clk 0:00:22]} 48. Kg2 {[%clk 0:00:17]}  Ng4 {[%clk 0:00:23]} 49. Rb4 {[%clk 0:00:18]}  Nf6 {[%clk 0:00:23]} 50. Rh4+ {[%clk 0:00:18]}  Kg7 {[%clk 0:00:23]} 51. Ra4 {[%clk 0:00:19]}  Re7 {[%clk 0:00:22]} 52. Ra6 {[%clk 0:00:19]}  g5 {[%clk 0:00:22]} 53. Ra5 {[%clk 0:00:19]}  Kg6 {[%clk 0:00:22]} 54. Ra2 {[%clk 0:00:19]}  h5 {[%clk 0:00:22]} 55. Rd2 {[%clk 0:00:20]}  Rd7 {[%clk 0:00:21]} 56. Re2 {[%clk 0:00:20]}  Kf5 {[%clk 0:00:20]} 57. Re3 {[%clk 0:00:19]}  g4 {[%clk 0:00:18]} 58. Re2 {[%clk 0:00:19]}  Ne4 {[%clk 0:00:17]} 59. Ra2 {[%clk 0:00:18]}  Rd2 {[%clk 0:00:17]} 60. Ra5+ {[%clk 0:00:14]}  Kg6 {[%clk 0:00:15]} 61. Ra6+ {[%clk 0:00:14]}  Rd6 {[%clk 0:00:15]} 62. Ra4 {[%clk 0:00:13]}  Kf5 {[%clk 0:00:13]} 63. Ra5+ {[%clk 0:00:13]}  Kg6 {[%clk 0:00:12]} 64. Re5 {[%clk 0:00:14]}  Nf6 {[%clk 0:00:12]} 65. Re2 {[%clk 0:00:13]}  Rd5 {[%clk 0:00:11]} 66. Kh2 {[%clk 0:00:12]}  Kg5 {[%clk 0:00:10]} 67. Kg2 {[%clk 0:00:13]}  Kf5 {[%clk 0:00:10]} 68. Kh2 {[%clk 0:00:13]}  Re5 {[%clk 0:00:10]} 69. Rd2 {[%clk 0:00:13]}  Ne4 {[%clk 0:00:10]} 70. Rc2 {[%clk 0:00:13]}  Rc5 {[%clk 0:00:10]} 71. Ra2 {[%clk 0:00:13]}  Rd5 {[%clk 0:00:10]} 72. Kg2 {[%clk 0:00:13]}  Rd2 {[%clk 0:00:09]} 73. Ra5+ {[%clk 0:00:14]}  Ke6 {[%clk 0:00:09]} 74. Rxh5 {[%clk 0:00:12]}  Nxf2 {[%clk 0:00:09]} 75. Rh6+ {[%clk 0:00:10]}  Kf5 {[%clk 0:00:09]} 76. Kf1 {[%clk 0:00:10]}  Ne4 {[%clk 0:00:08]} 77. Rh5+ {[%clk 0:00:11]}  Ng5 {[%clk 0:00:08]} 78. Rh8 {[%clk 0:00:08]}  Ne4 {[%clk 0:00:06]} 79. Rf8+ {[%clk 0:00:08]}  Ke5 {[%clk 0:00:06]} 80. Re8+ {[%clk 0:00:09]}  Kd4 {[%clk 0:00:06]} 81. Rd8+ {[%clk 0:00:09]}  Ke3 {[%clk 0:00:06]} 82. Rxd2 {[%clk 0:00:06]}  Nxd2+ {[%clk 0:00:06]} 83. Ke1 {[%clk 0:00:07]}  Ne4 {[%clk 0:00:06]} 84. Kf1 {[%clk 0:00:07]}  Kf3 {[%clk 0:00:07]} 85. Kg1 {[%clk 0:00:08]}  Nxg3 {[%clk 0:00:07]} 86. Kh2 {[%clk 0:00:08]}  Ne4 {[%clk 0:00:07]} 87. Kg1 {[%clk 0:00:08]}  g3 {[%clk 0:00:08]} 88. Kh1 {[%clk 0:00:08]}  g2+ {[%clk 0:00:08]} 89. Kg1 {[%clk 0:00:05]}  Nf6 {[%clk 0:00:08]} 90. Kh2 {[%clk 0:00:05]}  Kf2 {[%clk 0:00:09]} 91. Kh3 {[%clk 0:00:05]}  g1=Q {[%clk 0:00:08]} 92. Kh4 {[%clk 0:00:06]}  Qg4# {[%clk 0:00:09]} 0-1


[Site "https://www.chess.com"]

[Event "Titled Tuesday Blitz March 22 Late 2022"]
[White "Dardha, Daniel"]
[Black "Horcajuelo Rocamora, Martin"]
[WhiteFideId "240990"]
[BlackFideId "24573027"]
[WhiteElo "2482"]
[BlackElo "1706"]
[Result "1-0"]
[Round "01"]
[TimeControl "180+1"]
[Date "2022.03.22"]
[WhiteClock "0:00:09"]
[BlackClock "0:00:01"]

1. e4 {[%clk 0:02:58]}  e5 {[%clk 0:02:59]} 2. Nf3 {[%clk 0:02:57]}  Nc6 {[%clk 0:02:58]} 3. Bb5 {[%clk 0:02:56]}  Nf6 {[%clk 0:02:58]} 4. O-O {[%clk 0:02:55]}  Nxe4 {[%clk 0:02:58]} 5. Re1 {[%clk 0:02:53]}  Nd6 {[%clk 0:02:56]} 6. Nxe5 {[%clk 0:02:54]}  Nxe5 {[%clk 0:02:56]} 7. Rxe5+ {[%clk 0:02:55]}  Be7 {[%clk 0:02:56]} 8. Bf1 {[%clk 0:02:55]}  O-O {[%clk 0:02:55]} 9. d4 {[%clk 0:02:55]}  Bf6 {[%clk 0:02:50]} 10. Re1 {[%clk 0:02:55]}  Nf5 {[%clk 0:02:50]} 11. c3 {[%clk 0:02:54]}  d5 {[%clk 0:02:49]} 12. Bf4 {[%clk 0:02:54]}  c6 {[%clk 0:02:47]} 13. Nd2 {[%clk 0:02:54]}  Nd6 {[%clk 0:02:45]} 14. Bd3 {[%clk 0:02:49]}  Be6 {[%clk 0:02:34]} 15. h3 {[%clk 0:02:28]}  Bg5 {[%clk 0:02:06]} 16. Bh2 {[%clk 0:02:16]}  Qd7 {[%clk 0:01:49]} 17. Nf3 {[%clk 0:02:12]}  Bf6 {[%clk 0:01:48]} 18. Ne5 {[%clk 0:02:05]}  Bxe5 {[%clk 0:01:48]} 19. Bxe5 {[%clk 0:02:03]}  f6 {[%clk 0:01:47]} 20. Bxd6 {[%clk 0:01:38]}  Qxd6 {[%clk 0:01:46]} 21. Qh5 {[%clk 0:01:39]}  f5 {[%clk 0:01:10]} 22. Re5 {[%clk 0:01:25]}  g6 {[%clk 0:01:10]} 23. Qg5 {[%clk 0:01:20]}  Rae8 {[%clk 0:01:04]} 24. Rae1 {[%clk 0:01:19]}  Bd7 {[%clk 0:01:02]} 25. Bxf5 {[%clk 0:00:54]}  Rxe5 {[%clk 0:00:15]} 26. dxe5 {[%clk 0:00:52]}  Qc7 {[%clk 0:00:15]} 27. Bxg6 {[%clk 0:00:34]}  hxg6 {[%clk 0:00:15]} 28. Qxg6+ {[%clk 0:00:35]}  Kh8 {[%clk 0:00:16]} 29. Qh6+ {[%clk 0:00:35]}  Kg8 {[%clk 0:00:16]} 30. Re3 {[%clk 0:00:31]}  b5 {[%clk 0:00:11]} 31. Rg3+ {[%clk 0:00:29]}  Kf7 {[%clk 0:00:11]} 32. e6+ {[%clk 0:00:25]}  Ke8 {[%clk 0:00:11]} 33. Rg7 {[%clk 0:00:22]}  Qb6 {[%clk 0:00:05]} 34. Qg6+ {[%clk 0:00:16]}  Kd8 {[%clk 0:00:05]} 35. Rxd7+ {[%clk 0:00:17]}  Kc8 {[%clk 0:00:06]} 36. Rf7 {[%clk 0:00:14]}  Re8 {[%clk 0:00:05]} 37. Qf5 {[%clk 0:00:13]}  Qd8 {[%clk 0:00:04]} 38. Rd7 {[%clk 0:00:10]}  Qb6 {[%clk 0:00:01]} 39. e7 {[%clk 0:00:09]}  Kb8 {[%clk 0:00:01]} 40. Qf7 {[%clk 0:00:09]} 1-0


[Site "https://www.chess.com"]

[Event "Titled Tuesday Blitz March 22 Late 2022"]
[White "Deac, Bogdan-Daniel"]
[Black "Jeet, Jain"]
[WhiteFideId "1226380"]
[BlackFideId "5073022"]
[WhiteElo "2646"]
[BlackElo "2085"]
[Result "1-0"]
[Round "01"]
[TimeControl "180+1"]
[Date "2022.03.22"]
[WhiteClock "0:00:08"]
[BlackClock "0:00:01"]

1. b3 {[%clk 0:03:00]}  Nf6 {[%clk 0:02:55]} 2. Bb2 {[%clk 0:03:00]}  c5 {[%clk 0:02:52]} 3. c4 {[%clk 0:02:59]}  Nc6 {[%clk 0:02:51]} 4. Nf3 {[%clk 0:02:59]}  g6 {[%clk 0:02:51]} 5. g3 {[%clk 0:02:58]}  Bg7 {[%clk 0:02:51]} 6. Bg2 {[%clk 0:02:59]}  b6 {[%clk 0:02:51]} 7. d4 {[%clk 0:02:53]}  cxd4 {[%clk 0:02:50]} 8. Nxd4 {[%clk 0:02:54]}  Bb7 {[%clk 0:02:50]} 9. Nc2 {[%clk 0:02:54]}  O-O {[%clk 0:02:50]} 10. O-O {[%clk 0:02:54]}  Na5 {[%clk 0:02:40]} 11. Nc3 {[%clk 0:02:43]}  Bxg2 {[%clk 0:02:27]} 12. Kxg2 {[%clk 0:02:43]}  Rc8 {[%clk 0:02:26]} 13. Ne3 {[%clk 0:02:36]}  Ne4 {[%clk 0:02:20]} 14. Nxe4 {[%clk 0:02:35]}  Bxb2 {[%clk 0:02:19]} 15. Rb1 {[%clk 0:02:35]}  Bg7 {[%clk 0:02:18]} 16. Qd2 {[%clk 0:02:35]}  d6 {[%clk 0:02:16]} 17. Rfd1 {[%clk 0:02:32]}  Qd7 {[%clk 0:02:11]} 18. Nd5 {[%clk 0:02:30]}  Nc6 {[%clk 0:02:02]} 19. Qe3 {[%clk 0:02:29]}  Rfe8 {[%clk 0:01:58]} 20. Rbc1 {[%clk 0:02:25]}  Qe6 {[%clk 0:01:58]} 21. Nf4 {[%clk 0:02:16]}  Qf5 {[%clk 0:01:56]} 22. Rd5 {[%clk 0:02:12]}  Qd7 {[%clk 0:01:53]} 23. h4 {[%clk 0:02:06]}  Qb7 {[%clk 0:01:46]} 24. Qf3 {[%clk 0:02:03]}  Rc7 {[%clk 0:01:39]} 25. h5 {[%clk 0:01:33]}  Nb4 {[%clk 0:01:38]} 26. hxg6 {[%clk 0:01:24]}  hxg6 {[%clk 0:01:37]} 27. Rd2 {[%clk 0:00:53]}  d5 {[%clk 0:01:37]} 28. Nxd5 {[%clk 0:00:48]}  Nxd5 {[%clk 0:01:31]} 29. Rxd5 {[%clk 0:00:48]}  Qxd5 {[%clk 0:01:22]} 30. cxd5 {[%clk 0:00:49]}  Rxc1 {[%clk 0:01:23]} 31. d6 {[%clk 0:00:45]}  exd6 {[%clk 0:01:19]} 32. Nxd6 {[%clk 0:00:45]}  Rf8 {[%clk 0:01:19]} 33. Qb7 {[%clk 0:00:37]}  Rc2 {[%clk 0:01:18]} 34. Qxa7 {[%clk 0:00:37]}  Rxe2 {[%clk 0:01:18]} 35. Nb5 {[%clk 0:00:28]}  Rd8 {[%clk 0:01:13]} 36. Qxb6 {[%clk 0:00:25]}  Rdd2 {[%clk 0:01:11]} 37. a4 {[%clk 0:00:25]}  Bh6 {[%clk 0:01:06]} 38. Nc3 {[%clk 0:00:17]}  Re6 {[%clk 0:01:00]} 39. Qb8+ {[%clk 0:00:16]}  Kg7 {[%clk 0:00:55]} 40. Kf1 {[%clk 0:00:14]}  Rc2 {[%clk 0:00:54]} 41. Qb4 {[%clk 0:00:12]}  Kh7 {[%clk 0:00:42]} 42. Ne4 {[%clk 0:00:08]}  Rc7 {[%clk 0:00:27]} 43. Qd4 {[%clk 0:00:05]}  Rcc6 {[%clk 0:00:22]} 44. Qd5 {[%clk 0:00:04]}  Kg8 {[%clk 0:00:18]} 45. b4 {[%clk 0:00:04]}  Bg7 {[%clk 0:00:17]} 46. b5 {[%clk 0:00:05]}  Rc1+ {[%clk 0:00:18]} 47. Kg2 {[%clk 0:00:05]}  Re1 {[%clk 0:00:18]} 48. Nc5 {[%clk 0:00:04]}  R6e5 {[%clk 0:00:17]} 49. Qd8+ {[%clk 0:00:04]}  Re8 {[%clk 0:00:16]} 50. Qd3 {[%clk 0:00:04]}  Ra1 {[%clk 0:00:13]} 51. b6 {[%clk 0:00:04]}  Bf8 {[%clk 0:00:07]} 52. b7 {[%clk 0:00:03]}  Bxc5 {[%clk 0:00:06]} 53. Qb5 {[%clk 0:00:04]}  Rb8 {[%clk 0:00:05]} 54. Qxc5 {[%clk 0:00:04]}  Rxa4 {[%clk 0:00:05]} 55. Qc8+ {[%clk 0:00:04]}  Rxc8 {[%clk 0:00:02]} 56. bxc8=Q+ {[%clk 0:00:05]}  Kg7 {[%clk 0:00:03]} 57. Qc3+ {[%clk 0:00:05]}  Kg8 {[%clk 0:00:03]} 58. f4 {[%clk 0:00:05]}  Ra7 {[%clk 0:00:01]} 59. Qc8+ {[%clk 0:00:05]}  Kh7 {[%clk 0:00:01]} 60. Kh3 {[%clk 0:00:06]}  Re7 {[%clk 0:00:01]} 61. Kh4 {[%clk 0:00:06]}  Re6 {[%clk 0:00:01]} 62. g4 {[%clk 0:00:06]}  Kg7 {[%clk 0:00:01]} 63. f5 {[%clk 0:00:06]}  gxf5 {[%clk 0:00:02]} 64. gxf5 {[%clk 0:00:07]}  Rf6 {[%clk 0:00:03]} 65. Kg5 {[%clk 0:00:07]}  Ra6 {[%clk 0:00:03]} 66. Qc3+ {[%clk 0:00:07]}  Kh7 {[%clk 0:00:03]} 67. Qh3+ {[%clk 0:00:06]}  Kg7 {[%clk 0:00:03]} 68. f6+ {[%clk 0:00:07]}  Rxf6 {[%clk 0:00:03]} 69. Qc3 {[%clk 0:00:07]}  Kh7 {[%clk 0:00:01]} 70. Qxf6 {[%clk 0:00:08]} 1-0


[Site "https://www.chess.com"]

[Event "Titled Tuesday Blitz March 22 Late 2022"]
[White "Degtiarev, Evgeny"]
[Black "Goltsev, Dmitry"]
[WhiteFideId "4149610"]
[BlackFideId "24176710"]
[WhiteElo "2218"]
[BlackElo "2273"]
[Result "0-1"]
[Round "01"]
[TimeControl "180+1"]
[Date "2022.03.22"]
[WhiteClock "0:00:20"]
[BlackClock "0:01:55"]

1. d4 {[%clk 0:03:00]}  Nf6 {[%clk 0:03:00]} 2. c4 {[%clk 0:03:00]}  e6 {[%clk 0:03:00]} 3. g3 {[%clk 0:03:00]}  Bb4+ {[%clk 0:03:01]} 4. Bd2 {[%clk 0:02:58]}  Qe7 {[%clk 0:03:01]} 5. Nf3 {[%clk 0:02:57]}  b6 {[%clk 0:02:58]} 6. Bg2 {[%clk 0:02:54]}  Bb7 {[%clk 0:02:58]} 7. Nc3 {[%clk 0:02:43]}  O-O {[%clk 0:02:58]} 8. O-O {[%clk 0:02:42]}  Bxc3 {[%clk 0:02:58]} 9. Bxc3 {[%clk 0:02:42]}  Ne4 {[%clk 0:02:59]} 10. Rc1 {[%clk 0:02:42]}  a5 {[%clk 0:02:59]} 11. d5 {[%clk 0:02:37]}  d6 {[%clk 0:02:57]} 12. dxe6 {[%clk 0:02:19]}  fxe6 {[%clk 0:02:55]} 13. Nd2 {[%clk 0:02:17]}  Nxc3 {[%clk 0:02:55]} 14. Rxc3 {[%clk 0:02:16]}  Bxg2 {[%clk 0:02:56]} 15. Kxg2 {[%clk 0:02:16]}  Nd7 {[%clk 0:02:54]} 16. a3 {[%clk 0:02:06]}  a4 {[%clk 0:02:51]} 17. Re3 {[%clk 0:02:01]}  Nc5 {[%clk 0:02:50]} 18. Ne4 {[%clk 0:01:58]}  e5 {[%clk 0:02:49]} 19. Nxc5 {[%clk 0:01:58]}  bxc5 {[%clk 0:02:50]} 20. Qd5+ {[%clk 0:01:57]}  Qf7 {[%clk 0:02:49]} 21. Qxf7+ {[%clk 0:01:52]}  Kxf7 {[%clk 0:02:50]} 22. b3 {[%clk 0:01:45]}  Rfb8 {[%clk 0:02:48]} 23. f4 {[%clk 0:01:29]}  Ke6 {[%clk 0:02:45]} 24. fxe5 {[%clk 0:01:21]}  dxe5 {[%clk 0:02:46]} 25. Rff3 {[%clk 0:01:20]}  axb3 {[%clk 0:02:42]} 26. Rxb3 {[%clk 0:01:20]}  Rxb3 {[%clk 0:02:42]} 27. Rxb3 {[%clk 0:01:20]}  Ra4 {[%clk 0:02:43]} 28. Rc3 {[%clk 0:01:18]}  e4 {[%clk 0:02:42]} 29. Kf2 {[%clk 0:01:15]}  Ke5 {[%clk 0:02:41]} 30. e3 {[%clk 0:01:15]}  Ra6 {[%clk 0:02:40]} 31. Rb3 {[%clk 0:01:11]}  Ra4 {[%clk 0:02:36]} 32. Rc3 {[%clk 0:01:10]}  Kd6 {[%clk 0:02:34]} 33. Ke2 {[%clk 0:01:10]}  Kc6 {[%clk 0:02:30]} 34. Kd2 {[%clk 0:01:09]}  Ra8 {[%clk 0:02:30]} 35. Ke2 {[%clk 0:01:06]}  h5 {[%clk 0:02:29]} 36. Rb3 {[%clk 0:01:06]}  Ra4 {[%clk 0:02:27]} 37. Rc3 {[%clk 0:01:04]}  g5 {[%clk 0:02:27]} 38. Kd2 {[%clk 0:01:00]}  Kd6 {[%clk 0:02:23]} 39. Kc2 {[%clk 0:00:55]}  Ra8 {[%clk 0:02:22]} 40. Kd2 {[%clk 0:00:52]}  h4 {[%clk 0:02:20]} 41. gxh4 {[%clk 0:00:45]}  gxh4 {[%clk 0:02:21]} 42. Ke2 {[%clk 0:00:46]}  Rg8 {[%clk 0:02:20]} 43. Kf2 {[%clk 0:00:45]}  h3 {[%clk 0:02:19]} 44. a4 {[%clk 0:00:31]}  Rg2+ {[%clk 0:02:12]} 45. Kf1 {[%clk 0:00:31]}  Rxh2 {[%clk 0:02:10]} 46. Ra3 {[%clk 0:00:30]}  Kc6 {[%clk 0:02:09]} 47. a5 {[%clk 0:00:29]}  Kb7 {[%clk 0:02:09]} 48. a6+ {[%clk 0:00:28]}  Ka7 {[%clk 0:02:09]} 49. Ra5 {[%clk 0:00:26]}  Rc2 {[%clk 0:02:06]} 50. Rxc5 {[%clk 0:00:22]}  h2 {[%clk 0:01:58]} 51. Rxc7+ {[%clk 0:00:21]}  Kxa6 {[%clk 0:01:57]} 52. Rh7 {[%clk 0:00:22]}  Kb6 {[%clk 0:01:54]} 53. Rh5 {[%clk 0:00:21]}  Ra2 {[%clk 0:01:54]} 54. c5+ {[%clk 0:00:20]}  Kc6 {[%clk 0:01:54]} 55. Ke1 {[%clk 0:00:20]}  Ra1+ {[%clk 0:01:54]} 56. Kf2 {[%clk 0:00:20]}  h1=Q {[%clk 0:01:55]} 0-1


[Site "https://www.chess.com"]